Cogmind - Beta 15 @@@ ROGUE MODE // 2025.10.16 @ 06:32:36 Player: Hidden Result: Destroyed by E9-DBR(R) with Subdweller Shrapnel Launcher Performance ------------- Evolutions (0) 0 Regions Visited (2) 400 Robots Destroyed (6) 30 Value Destroyed (234) 234 Prototype IDs (0) 0 Alien Tech Used (0) 0 Bonus (0) 0 TOTAL SCORE: 664 Bonus ------- None Cogmind --------- Core Integrity 0/250 Matter 400/400 Energy 100/100 System Corruption 0% Temperature Cool (0) Movement Core (450) Ox8 Location -10/Subcaves Parts ------- > --- POWER (1) -------- (None) > --- PROPULSION (2) --- (None) > --- UTILITY (2) ------ Large Storage Unit Medium Matter Pod > --- WEAPON (2) ------- Subdweller Machine Gun > --- INVENTORY (15) --- Subdweller Power Source Medium Storage Unit Large Storage Unit Scrap Shield Battle Cannon Multitool Scrap Shield Fragment (49) Peak State ------------ > --- POWER ------------ (None) > --- PROPULSION ------- Wheel Subdweller Monowheel > --- UTILITY ---------- Large Storage Unit Medium Matter Pod > --- WEAPON ----------- Subdweller Machine Gun Subdweller Machine Gun > --- INVENTORY -------- Subdweller Power Source Medium Storage Unit Large Storage Unit Scrap Shield Battle Cannon Scrap Shield Fragment [Rating: 10] Favorites ----------- Power Light Ion Engine Engine Light Ion Engine Propulsion Aluminum Leg Treads Light Treads Leg Aluminum Leg Wheel Subdweller Monowheel Utility Medium Matter Pod Storage Medium Matter Pod Weapon Subdweller Machine Gun Energy Gun Small Laser Ballistic Gun Subdweller Machine Gun Build | -11 -10 -10 ------- Run | Yrd Mat Sub Slots Evolved . | . . . Power . | . . . Propulsion . | . . . Utility . | . . . Weapon . | . . . Parts Attached 16 | 7 2 7 Power 2 | 1 . 1 Engine 2 | 1 . 1 Core . | . . . Reactor . | . . . Propulsion 6 | 2 . 4 Treads 2 | 2 . . Leg 2 | . . 2 Wheel 2 | . . 2 Hover . | . . . Flight . | . . . Utility 3 | 1 2 . Device . | . . . Storage 3 | 1 2 . Processor . | . . . Hackware . | . . . Protection . | . . . Artifact . | . . . Weapon 5 | 3 . 2 Energy Gun 1 | 1 . . Energy Cannon . | . . . Ballistic Gun 4 | 2 . 2 Ballistic Cannon . | . . . Launcher . | . . . Special Weapon . | . . . Impact Weapon . | . . . Slashing Weapon . | . . . Piercing Weapon . | . . . Special Melee Weapon . | . . . Unidentified Prototypes . | . . . Parts Lost 12 | . . 12 Power 2 | . . 2 Propulsion 6 | . . 6 Utility . | . . . Weapon 4 | . . 4 Highest Loss Streak 5 | . . 5 To Critical Strikes . | . . . Average Backups 3 | 2 4 3 Power . | . 1 . Propulsion . | 1 2 . Utility 1 | . . 2 Weapon . | . 1 . Tool/Special . | . . . Unused Backups 6 | . . 6 Power 1 | . . 1 Propulsion . | . . . Utility 3 | . . 3 Weapon 1 | . . 1 Tool/Special 1 | . . 1 Average Slot Usage (%) 91 | . 96 90 Engine 11 | . 14 10 Treads 10 | . 28 1 Leg 13 | . . 19 Wheel 2 | . . 3 Storage 26 | . 24 27 Energy Gun 6 | . . 9 Ballistic Gun 19 | . 28 15 Peak Build Rating 10 | 6 7 10 Average Rating 7 | 5 6 7 On Entrance 4 | . 6 7 Naked Turns . | . . . Heaviest Build 30 | 11 28 30 Greatest Support 40 | 40 40 40 Greatest Overweight (x) 9 | 1 . 9 Average Overweight (x) . | . . . Largest Inventory Capacity 15 | 8 15 15 Average Capacity 13 | 7 11 15 Most Carried 8 | 4 6 8 Average Carried 4 | 2 4 5 Final Capacity 15 | 8 15 15 Final Carried 8 | 4 6 8 Class Distribution -------------------- 100% | Mutant Dominant Class ---------------- Mutant | -10/Materials Mutant | -10/Subcaves Resources | -11 -10 -10 ----------- Run | Yrd Mat Sub Matter Collected 516 | 216 38 262 Remotely . | . . . Salvage Created 268 | . 38 230 Parts 12 | . 1 11 Haulers Intercepted . | . . . Recyclers Shooed . | . . . Parts Field Recycled . | . . . Retrieved Matter . | . . . Parts Self-Destructed 4 | . . 4 Prevented . | . . . Kills | -11 -10 -10 ------- Run | Yrd Mat Sub Combat Hostiles Destroyed 6 | . 1 5 Guns 6 | . 1 5 Classes Destroyed 2 | . 1 1 Grunt 1 | . 1 . Subdweller 5 | . . 5 Best Kill Streak 1 | . 1 1 Combat Bots Only 1 | . 1 1 Max Kills in Single Turn 1 | . 1 1 Gunslinging . | . . . Exploded . | . . . Melee . | . . . Uniques/NPCs Destroyed . | . . . Combat | -11 -10 -10 -------- Run | Yrd Mat Sub Hostile Shots Fired 76 | . 8 68 Missed 16 | . 1 15 Hits 60 | . 7 53 Projectile 60 | . 7 53 AOE 3 | . . 3 Critical Strikes 3 | . . 3 Damage Taken 1432 | . 83 1349 Core 259 | . . 259 Absorbed by Shields . | . . . Core Remaining (%) 100 | 100 . . Volleys Fired 50 | . 8 42 Largest 2 | . 2 2 Hottest 70 | . 40 70 Shots Fired 75 | . 16 59 Gun 75 | . 16 59 Cannon . | . . . Launcher . | . . . Special . | . . . Kinetic 50 | . 16 34 Thermal 25 | . . 25 Explosive . | . . . Electromagnetic . | . . . Robot Hit Streak 25 | . 6 25 Robot Miss Streak 2 | . 1 2 Penetration Max . | . . . Secondary Targets 1 | . . 1 Max Gunslinging Chain 1 | . . 1 Shots Hit Robots 52 | . 8 44 Core Hits 18 | . 3 15 Critical Kills . | . . . Critical Parts Destroyed . | . . . Critical Strikes . | . . . Melee Attacks . | . . . Impact . | . . . Slashing . | . . . Piercing . | . . . Sneak Attacks . | . . . Combat Hostiles . | . . . Follow-up Attacks . | . . . Damage Inflicted 677 | . 88 589 Guns 668 | . 79 589 Cannons . | . . . Explosions . | . . . Melee . | . . . Ramming 9 | . 9 . Kinetic 436 | . 79 357 Thermal 232 | . . 232 Explosive . | . . . Electromagnetic . | . . . Impact . | . . . Slashing . | . . . Piercing . | . . . Highest Corruption . | . . . Average Corruption . | . . . Corruption Purged . | . . . Corruption Blocked . | . . . Overload Shots . | . . . Overflow Damage . | . . . Projectiles . | . . . Explosions . | . . . Melee . | . . . Knockbacks . | . . . Impact . | . . . Kinetic . | . . . Secondary . | . . . Self-Inflicted Damage . | . . . Shots . | . . . Rammed 1 | . 1 . Targets Rammed 1 | . 1 . Kicked . | . . . Crushed . | . . . Highest Temperature 244 | . 12 244 Average Temperature 77 | . 7 140 Received Heat Transfer 473 | . 42 431 Siege Activations . | . . . Martial Activations . | . . . Shielding Activations . | . . . Robots Disrupted . | . . . Combat Hostiles . | . . . Robots Corrupted . | . . . Combat Hostiles . | . . . Parts Fried . | . . . Impact Corruptions . | . . . Robots Melted . | . . . Combat Hostiles . | . . . Parts Melted . | . . . Heat Transferred 525 | . . 525 Parts Sabotaged . | . . . Parts Stolen . | . . . Parts Stripped . | . . . Power Chain Reactions . | . . . Alert | -11 -10 -10 ------- Run | Yrd Mat Sub Maximum Alert Level . | . . . Low Security (%) 100 | 100 100 . Level 1 . | . . . Level 2 . | . . . Level 3 . | . . . Level 4 . | . . . Level 5 . | . . . High Security . | . . . Max Security . | . . . Peak Influence 45 | . 45 . Initial . | . . . Average 5 | . 6 . Influence Increases 65 | . 65 . Destroy 0b10 Robot/C 20 | . 20 . Lose Combat Pursuer 45 | . 45 . Influence Decreases 65 | . 30 35 Entered New Map 18 | . . 18 Time Decay 37 | . 30 7 Lost Part 10 | . . 10 Squads Dispatched 3 | . 3 . Investigation 1 | . 1 . Extermination . | . . . Reinforcement 2 | . 2 . Assault . | . . . Garrison . | . . . Intercept . | . . . Searches Triggered . | . . . Construction Impeded . | . . . Haulers Reinforced . | . . . Active Scanning Responses . | . . . Cargo Convoy Interrupts . | . . . Stealth | -11 -10 -10 --------- Run | Yrd Mat Sub Distress Signals . | . . . Communications Jammed . | . . . Distress Signals . | . . . Times Spotted 7 | . 1 6 Peak Tracking Total 4 | . 4 3 Tactical Retreats 1 | . 1 . Traps | -11 -10 -10 ------- Run | Yrd Mat Sub Traps Triggered 1 | . 1 . Indirectly . | . . . Trap Hack Attempts . | . . . Triggered . | . . . Disarmed . | . . . Reprogrammed . | . . . Reused . | . . . Traps Extracted . | . . . Installed . | . . . Triggered . | . . . Machines | -11 -10 -10 ---------- Run | Yrd Mat Sub Machines Disabled . | . . . Max in Single Turn . | . . . Machines Repaired . | . . . Machines Dismantled . | . . . Machines Sabotaged . | . . . Overloaded Fab Kills . | . . . Hacking | -11 -10 -10 --------- Run | Yrd Mat Sub Machines Accessed . | . . . Terminals . | . . . Fabricators . | . . . Repair Stations . | . . . Recycling Units . | . . . Scanalyzers . | . . . Garrison Access . | . . . Total Hacks . | . . . Successful . | . . . Failed . | . . . Catastrophic . | . . . Database Lockouts . | . . . Manual . | . . . Terminals . | . . . Fabricators . | . . . Repair Stations . | . . . Recycling Units . | . . . Scanalyzers . | . . . Garrison Access . | . . . Terminal Hacks . | . . . Fabricator Hacks . | . . . Repair Station Hacks . | . . . Recycling Unit Hacks . | . . . Scanalyzer . | . . . Garrison Access Hacks . | . . . Unauthorized Hacks . | . . . Terminals . | . . . Fabricators . | . . . Repair Stations . | . . . Recycling Units . | . . . Scanalyzers . | . . . Garrison Access . | . . . Data Cores Recovered . | . . . Used . | . . . Hacking Detections . | . . . Full Trace Events . | . . . Feedback Events . | . . . Feedback Blocked . | . . . Robot Schematics Acquired . | . . . Robots Built . | . . . Authchips . | . . . Time . | . . . Total Robot Build Rating . | . . . Part Schematics Acquired . | . . . Parts Built . | . . . Authchips . | . . . Time . | . . . Total Part Build Rating . | . . . Parts Repaired . | . . . Time . | . . . Parts Recycled . | . . . Recycled Matter . | . . . Retrieved Matter . | . . . Retrieved Components . | . . . Parts Scanalyzed . | . . . Part Schematics Acquired . | . . . Parts Damaged . | . . . Bothacking | -11 -10 -10 ------------ Run | Yrd Mat Sub Used RIF Installer . | . . . Robots Hacked . | . . . Non-combat . | . . . Combat . | . . . Robot Hacks Applied . | . . . Relay Couplers Released . | . . . Fabnet Peak Effective % . | . . . Robots Rewired . | . . . Allies Hacked . | . . . Hacks Repelled . | . . . Allies | -11 -10 -10 -------- Run | Yrd Mat Sub Total Allies . | . . . Largest Group . | . . . Highest-Rated Group . | . . . Highest-Rated Ally . | . . . Total Orders . | . . . Ally Attacks . | . . . Total Damage . | . . . Kills . | . . . Allies Corrupted . | . . . Allies Melted . | . . . Intel | -11 -10 -10 ------- Run | Yrd Mat Sub Active Infowar (turns) . | . . . Robot Analysis Total . | . . . Derelict Logs Recovered . | . . . Drone Launches . | . . . Drone Recoveries . | . . . Exploration | -11 -10 -10 ------------- Run | Yrd Mat Sub Turns Passed 904 | 85 256 563 Spaces Moved 431 | 48 130 253 Core 9 | 5 . 4 Treads 183 | 43 130 10 Legs 176 | . . 176 Wheels 63 | . . 63 Hover . | . . . Flight . | . . . Fastest Speed 50 | 50 160 95 Average Speed 166 | 150 160 172 Slowest Speed 500 | 160 160 500 Overloaded Moves . | . . . Propulsion Burnouts . | . . . Robots Hopped . | . . . Potential Cave-ins . | . . . Cave-ins Triggered . | . . . Exploration Rate (%) 13 | 4 21 14 Regions Visited 2 Branch Regions 1 Pre-discovered Areas 1 | . . 1 Known Exits Taken . | . . . Unknown Exits Taken 2 | 1 1 . Scrap Searched . | . . . Spaces Dug . | . . . Terrain Destroyed . | . . . Melee . | . . . Projectile . | . . . AOE . | . . . Terrain Rammed . | . . . Walls Destroyed . | . . . Machines Disabled . | . . . Actions | -11 -10 -10 --------- Run | Yrd Mat Sub Total 544 | 58 163 323 Wait 31 | . 19 12 Move 429 | 47 129 253 Hop . | . . . Pick Up 12 | 3 3 6 Fast Attach 11 | 7 1 3 Attach 7 | . 1 6 Detach 2 | 1 . 1 Swap . | . . . Drop 1 | . 1 . Fire 50 | . 8 42 Melee . | . . . Ram . | . . . Kick . | . . . Crush 1 | . 1 . Escape Stasis . | . . . Rewire . | . . . Trap . | . . . Miscellaneous . | . . . Route ------- -11/Scrapyard -10/Materials -10/Subcaves History --------- Turn | Location | Event 24 | -11/Scrapyard | Discovered new exit (range 15) 86 | -11/Scrapyard | Entered Materials 254 | -10/Materials | Discovered new exit (range 7) 301 | -10/Materials | Build established: Mutant 342 | -10/Materials | Entered Subcaves 386 | -10/Subcaves | Core integrity fell below 50% 415 | -10/Subcaves | Lost 5 parts (1p2n2w) 486 | -10/Subcaves | Learned location of Zion (-6) 486 | -10/Subcaves | Met a Zionite searching for "candidates" 759 | -10/Subcaves | Shifting Twisted Machinery released Sub. Machine Gun 761 | -10/Subcaves | Shifting Twisted Machinery released Battle Cannon 776 | -10/Subcaves | Core integrity fell below 20% 816 | -10/Subcaves | Lost 4 parts (1p2n1w) 905 | -10/Subcaves | Destroyed by E9-DBR(R) with Subdweller Shrapnel Launcher Last Messages --------------- Battle Cannon falls loose from the Twisted Machinery. 00763_ AR-Z1J(R): "LEAVESUB!" 00764_ Acquired Sub. Machine Gun. 00767_ Acquired Battle Cannon. 00773_ Aluminum Leg destroyed. 00785_ Lgt. Ion Engine destroyed. 00785_ Sml. Laser destroyed. 00786_ AR-Z1J(R) destroyed. 00794_ Acquired Sub. Monowheel. 00796_ Acquired 37 matter. 00799_ Acquired Sub. Power Source. 00834_ Acquired Wheel. 00836_ Acquired Multitool. 00837_ Acquired 30 matter. 00866_ Sub. Machine Gun destroyed. 00881_ Sub. Monowheel destroyed. 00885_ Wheel destroyed. 00891_ AM-BMY(R) destroyed. 00893_ Acquired 12 matter. Map ----- +----------------------------------------------------+ | ?????????????????????????????????????????????????? | | ?????????????????????????????????????????????????? | | ?????????????????????????????????????????????????? | | ?????????????????????????????????????????????????? | | ?????????????????????????????????????????????????? | | ?????????????????????????????????????????????????? | | ?????????????????????????????????????????????????? | | ?????????????????????????????????????????????????? | | ?????????????????????????????????????????????????? | | ?????????????????????????????????????????????????? | | ?????????????????????????????????????????????????? | | ????????????????????? #??????????????????????????? | | ???????????????????? #???????? ???????????????? | | ???????????????????? ??????? #?????????????? | | ???????????????????? #??#### #?????????????? | | ????????????????????# ## ??????????????? | | ????????????????????# ???????????????? | | ????????????????##??? ????????????????? | | ????????????????? #??? ?????????????????? | | ????????????????? ??? #??????????????????? | | ????????????? ???? ??? #???????????????????? | | ????????????? ?? ???# #????????????????????? | | ?????????????? "??? ####; #????????????????????? | | ??????????????# #?# #; ;; ;##???????????????????? | | ??###?????????#""### & ; ##??????????????????? | | ??# ##????????# "# @ #?????????????????? | | ?## ##???##### "" ;; ##????????????????? | | ## ##??# "# #" # ### ##???????????????? | | # """""#??# ""##" ## ### ; ; #???????????????? | | """""####"""## # ####;; ; #???????????????? | | """" ##""""" ; ;##???????????????? | | # """ ## " """ #; ;#???????????????? | | #" " ##" ####### #???????????????? | | "" # ######????? R ??????????????? | | #"&! "# #?????????? ?????????????? | | # "# "## ## #?????????# ????????????? | | # "#### ### #????????## ??????????? | | #"# ##### #? #?????????# #?????????? | | # #?#### ????????? #####?????????? | | ### ### #????# ???????? ##?????????????? | | ??## # #???? #??????? #??????????????? | | ##?# #?#???? #??????? ??????????????? | | ### ##?????? ## #??????? ??????????????? | | # #?????? ##? ??????? ## ??????????????? | | # ###?????? ##?? #??????? ??#??????????????? | | # ##???????? ???? ##???????? #?????????????????? | | #?????????? ????? ?????????? ??????????????????? | | ???????????? ???????????????????????????????????? | | ?????????????????????????????????????????????????? | | ?????????????????????????????????????????????????? | +----------------------------------------------------+ Best States ------------- Heat Dissipation 25 Energy Generation 10 Energy Capacity 125 Matter Stores 400 Matter Capacity 400 Sight Range 16 Terrain Scan Density 10 Evasion (%) 41 Recoil Reduction 2 Item Schematics ----------------- None Robot Schematics ------------------ None Fabricated ------------ Nothing Repaired ---------- Nothing Alien Tech Used ----------------- None Achievements -------------- None Challenges ------------ None Game ------ Seed GreatMicrowarpChainsaw Manual? 0 Play Time 00:10:01 Cumulative 4.6 hours Start 2025.10.16 @ 06:24:26 End 2025.10.16 @ 06:32:36 Sessions 1 Manual Loads 0 Difficulty Rogue Special Mode None Game No. 7 Rogue 7 Adventurer 0 Explorer 0 Win Type - Total 0 Types 0/0/0/0/0/0/0/0/0/0 Lore% 6 Gallery% 10 Achievement% 10 Wizard Run 0 Options --------- Layout 1 ASCII 0 Keyboard 0 Movement Mouse Keybinds 0 Fullscreen 1 Font 24/X11 Map View 50x35 Zoom Use 0% Tactical HUD 1 Map Filters NONE Filters NONE Steam 1 RUN: 7d077290-a7a9-403e-9501-f3b2dfcf44ab